[Event "2nd Cambridge Open 2024"]
[Site "Cambridge"]
[Date "2024.02.22"]
[Round "6.8"]
[White "Wells, Peter K"]
[Black "Turner, Matthew J"]
[Result "1/2-1/2"]
[ECO "D90"]
[WhiteElo "2341"]
[BlackElo "2448"]
[Annotator "TA"]
[PlyCount "69"]
[EventDate "2024.02.18"]
[EventType "swiss"]
[EventCountry "ENG"]
[SourceTitle "playchess.com"]
[Source "ChessBase"]
[SourceQuality "1"]
[TimeControl "5400+30"]

{[%evp 17,69,19,56,38,52,45,40,18,10,29,179,182,179,179,195,160,268,271,303,8,10,16,12,18,14,13,13,6,6,0,0,0,0,-2,0,0,0,0,0,0,0,0,0,0,0,0,0,0,0,0,0,0,0,0]} 1. d4 {[%emt 0:02:12]} d5 {[%emt 0:00:16]} 2. c4 {[%emt 0:00:16]} c6 {[%emt 0:00:22]} 3. Nf3 {[%emt 0:00:30]} Nf6 {[%emt 0:00:09]} 4. Nc3 {[%emt 0:00:07]} g6 {[%emt 0:04:04]} 5. cxd5 {[%emt 0:04:06]} cxd5 {[%emt 0:00:18]} 6. Bf4 {[%emt 0:00:10]} Nc6 {[%emt 0:01:02]} 7. h3 {[%emt 0:07:56]} Bg7 {[%emt 0:01:23]} 8. e3 {[%emt 0:01:04]} O-O {[%emt 0:00:13]} 9. Bd3 {[%emt 0:00:19]} Qb6 {[%emt 0:04:39]} 10. a3 {[%emt 0:02:50]} Bf5 {[%emt 0:05:27]} 11. Bxf5 {[%emt 0:13:01]} gxf5 {[%emt 0:02:24]} 12. Qc2 {[%emt 0:01:03][%cal Og2g4] White is slightly better.} Rac8 {[%emt 0:04:16] [#]} 13. g4 $1 {[%emt 0:15:56]} fxg4 {[%emt 0:03:34]} (13... e6 $11 {and Black is okay.}) (13... Na5 14. Ne5) 14. hxg4 $18 {[%emt 0:03:35]} Na5 {[%emt 0:01:11]} 15. Nd2 {[%emt 0:11:33] Repels Ne4. g5 is the strong threat.} Rfe8 {[%emt 0:10:51]} 16. Rc1 {[%emt 0:15:16] aiming for b4.} Kf8 {[%emt 0:11:58]} (16... Ne4 $16 {keeps fighting.} 17. Ndxe4 dxe4) 17. Bh6 {[%emt 0:05:24]} (17. g5 $6 Nd7 $16) 17... e5 {[%emt 0:12:01] Hoping for ...Bxh6.} 18. Qf5 $2 {[%emt 0:05:20]} (18. g5 $18 Ne4 19. Bxg7+ Kxg7 20. Rh6 (20. Ndxe4 dxe4 21. Rh6 Rc6 $18)) 18... exd4 $11 {[%emt 0:04:28] White must now prevent ...Bxh6. The position is equal.} 19. Bxg7+ {[%emt 0:02:04]} Kxg7 {[%emt 0:00:05]} 20. g5 $1 {[%emt 0:00:03]} (20. Nxd5 $2 Rxc1+ 21. Ke2 Qb5+ (21... Rxh1 22. Nxb6 dxe3 23. Qg5+ Kf8 24. fxe3 $11) (21... Qa6+ $2 22. Kf3 $19) 22. Kf3 Qxd5+ $19 (22... Rxh1 $2 23. Qxf6+ Kg8 24. Qxd4 $19)) 20... Nh5 {[%emt 0:02:41]} 21. Rxh5 {[%emt 0:01:29][%cal Bh1h5,Bh5h6,Bh6h7][%mdl 32]} (21. Nxd5 $2 Rxc1+ 22. Ke2 Qb5+ (22... Rxh1 $2 23. Nxb6 $19) (22... Qxb2 $2 23. Rxh5 d3+ 24. Kf3 $18) 23. Kf3 Rxh1 $19) 21... Qg6 {[%emt 0:00:05] [#]} 22. Qf6+ {[%emt 0:01:19]} Kg8 $132 {[%emt 0:00:25][%mdl 2048] Black has counterplay} 23. Rh6 {[%emt 0:01:32]} (23. Qxg6+ hxg6 24. Rh4 dxc3 25. Rxc3 Rxc3 26. bxc3 Rd8) 23... Qd3 {[%emt 0:00:29]} 24. Nf3 {[%emt 0:03:44]} dxc3 {[%emt 0:02:14]} 25. bxc3 {[%emt 0:00:14] Ne5 would now be deadly.} ({Avoid the trap} 25. Rd1 $2 Qxd1+ 26. Kxd1 c2+ 27. Ke2 c1=Q $19 (27... c1=R 28. Rxh7 Kxh7 29. Qxf7+ Kh8 30. g6 R8c2+ 31. Kd3 Rd1+ 32. Kxc2)) 25... Nb3 {[%emt 0:02:54]} 26. g6 {[%emt 0:00:56] Really sharp!} fxg6 {[%emt 0:01:27]} (26... Nxc1 27. Qxf7+ Kh8 28. Rxh7#) 27. Rxh7 $1 {[%emt 0:00:13][%csl Gh7][%cal Rf6f7]} Rxe3+ {[%emt 0:00:50]} (27... Kxh7 $5 28. Ng5+ $8 Kh6 29. Nf7+ Kh7 30. Ng5+ Kh6 31. Nf7+ Kh7 32. Ng5+ $11) 28. fxe3 {[%emt 0:00:04]} Qxe3+ {[%emt 0:00:05]} ({Weaker is} 28... Nxc1 29. Rh8#) 29. Kf1 $1 {[%emt 0:00:15][%csl Gf6][%cal Rh7h8]} Qxc1+ {[%emt 0:00:06]} ({And not} 29... Nxc1 30. Rh8#) 30. Kg2 {[%emt 0:00:18][%csl Gh7][%cal Rf6f7]} Kxh7 {[%emt 0:01:20]} 31. Ng5+ {[%emt 0:00:14]} Kh6 {[%emt 0:00:29]} 32. Nf7+ {[%emt 0:00:12]} Kh7 {[%emt 0:00:15]} 33. Ng5+ {[%emt 0:00:20]} Kh6 {[%emt 0:00:26]} 34. Nf7+ {[%emt 0:00:15]} Kh7 {[%emt 0:00:08] Threatens to win with ...Qc2+.} 35. Ng5+ {[%emt 0:04:10] Weighted Error Value: White=0.21 (precise) /Black=0.17 (very precise) .  Missed win:     	White=1     	---        Mistake:       	---       	Black=2      OK:         	White=11    	Black=12     Best:        	White=3     	Black=3      Strong:       	White=3     	---} 1/2-1/2

[Event "2nd Cambridge Open 2024"]
[Site "Cambridge"]
[Date "2024.02.22"]
[Round "6.9"]
[White "Fava, Lorenzo"]
[Black "Wadsworth, Matthew J"]
[Result "1/2-1/2"]
[ECO "C00"]
[WhiteElo "2084"]
[BlackElo "2450"]
[Annotator "TA"]
[PlyCount "139"]
[EventDate "2024.02.18"]
[EventType "swiss"]
[EventCountry "ENG"]
[SourceTitle "playchess.com"]
[Source "ChessBase"]
[SourceQuality "1"]
[TimeControl "5400+30"]

{[%evp 36,138,34,26,26,35,33,25,46,25,21,10,35,26,29,26,32,30,58,40,73,12,17,15,105,101,160,126,135,128,231,162,145,79,89,81,75,94,75,77,47,37,66,25,26,15,14,8,8,8,8,8,8,8,91,91,91,91,91,91,91,51,52,52,74,74,74,74,74,74,74,74,74,64,64,57,64,64,64,57,64,64,64,64,82,82,82,82,82,82,82,82,82,0,82,0,82,84,84,84,84,8,50,79,79]} 1. e4 {[%emt 0:00:03]} e6 {[%emt 0:05:36]} 2. d3 {[%emt 0:01:56]} d5 {[%emt 0:00:37]} 3. Nd2 {[%emt 0:00:05]} Nf6 {[%emt 0:00:24]} 4. Ngf3 {[%emt 0:00:06]} Be7 {[%emt 0:00:30]} 5. g3 {[%emt 0:00:06]} O-O {[%emt 0:00:31]} 6. Bg2 {[%emt 0:00:06] C00: French: Unusual White 2nd moves.} a5 {[%emt 0:00:31]} 7. O-O {[%emt 0:00:44]} a4 {[%emt 0:03:04]} 8. a3 {[%emt 0:01:02]} Nc6 {[%emt 0:00:29]} 9. Re1 {[%emt 0:00:17]} dxe4 {[%emt 0:00:38]} 10. Nxe4 {[%emt 0:08:46]} Nxe4 {[%emt 0:02:09]} 11. Rxe4 {[%emt 0:02:23]} b6 $146 {[%emt 0:03:08]} ({Predecessor:} 11... Bf6 12. g4 g6 13. d4 Bg7 14. Bf4 b6 15. Ne5 Nxe5 16. dxe5 Bb7 17. Rd4 Qc8 {½-½ Ilamparthi,A (2426)-Liyanage,R (2366) Bangalore op 1st 2024 (10)}) 12. c3 {[%emt 0:06:20]} Bb7 {[%emt 0:04:16]} 13. Rxa4 {[%emt 0:03:09]} Rxa4 {[%emt 0:01:32]} 14. Qxa4 {[%emt 0:00:07]} Qxd3 {[%emt 0:01:17]} 15. Be3 {[%emt 0:10:34]} Ra8 {[%emt 0:13:03]} 16. Qd1 {[%emt 0:03:33]} Qxd1+ {[%emt 0:12:18]} 17. Rxd1 {[%emt 0:00:14]} Na5 {[%emt 0:00:16]} 18. Rd7 {[%emt 0:22:00]} Rd8 {[%emt 0:00:37]} (18... Bd6 19. Bxb6 cxb6 $18 (19... Bc6 $14)) 19. Rxd8+ {[%emt 0:09:05]} (19. Rxe7 $2 Rd1+ 20. Bf1 Kf8 21. Rxc7 Bxf3 22. Rc8+ (22. Bxb6 $2 Nb3 $19) 22... Ke7 $19) 19... Bxd8 {[%emt 0:00:01]} 20. Nd2 {[%emt 0:00:07]} Bd5 {[%emt 0:06:30]} 21. b4 {[%emt 0:05:42]} Nc6 {[%emt 0:00:53]} 22. c4 {[%emt 0:00:24]} Bxg2 {[%emt 0:03:46]} 23. Kxg2 {[%emt 0:00:02]} Kf8 {[%emt 0:02:21]} 24. Kf1 {[%emt 0:05:37]} Ke8 {[%emt 0:08:48]} 25. Ke2 {[%emt 0:00:18]} Be7 {[%emt 0:04:47]} 26. f4 {[%emt 0:02:08]} f5 {[%emt 0:02:12]} 27. Nf3 {[%emt 0:05:09]} Bf6 {[%emt 0:02:39]} 28. Bd2 {[%emt 0:02:41]} ({White should play} 28. Kd3 $16) 28... Kd7 {[%emt 0:04:53]} 29. Kd3 {[%emt 0:00:10]} g6 {[%emt 0:01:45]} (29... e5 $11 30. fxe5 Nxe5+ 31. Nxe5+ Bxe5) 30. a4 $16 {[%emt 0:01:07]} Be7 {[%emt 0:00:48] [#]} (30... Kc8 $142) 31. c5 $1 $16 {[%emt 0:06:02]} ({Don't take} 31. b5 $6 Nd8 $14) 31... bxc5 {[%emt 0:06:27]} 32. b5 {[%emt 0:00:01]} Nd8 {[%emt 0:00:11]} (32... Nb8 $16 {keeps fighting.} 33. Ne5+ Kc8) 33. Ne5+ {[%emt 0:02:00]} Kc8 {[%emt 0:00:08]} 34. a5 {[%emt 0:02:07]} (34. Kc4 $142) 34... Nb7 $16 {[%emt 0:01:33]} 35. Nc6 {[%emt 0:00:01]} Bf6 {[%emt 0:00:31] [#]} 36. Be3 $1 {[%emt 0:00:48]} Nd6 {[%emt 0:01:35]} 37. Bxc5 {[%emt 0:00:26]} Nxb5 {[%emt 0:02:34]} 38. a6 {[%emt 0:00:01]} g5 {[%emt 0:01:41]} 39. Kc4 {[%emt 0:02:07]} Nd6+ {[%emt 0:00:01]} 40. Bxd6 {[%emt 0:01:12]} cxd6 {[%emt 0:00:04]} 41. fxg5 {[%emt 0:00:11]} Bxg5 {[%emt 0:00:56]} 42. Nd4 {[%emt 0:00:25]} d5+ {[%emt 0:02:40]} 43. Kb5 {[%emt 0:00:14]} e5 {[%emt 0:00:22]} 44. Nxf5 {[%emt 0:00:02]} (44. Kc6 $5 Kb8 $8 (44... exd4 $2 {is the wrong capture.} 45. a7 $18) 45. Nf3 $16 (45. Nxf5 d4 $11)) 44... e4 {[%emt 0:00:31]} (44... Kb8 $11) 45. Kc6 $16 {[%emt 0:01:40]} Kb8 {[%emt 0:00:55]} 46. Kxd5 {[%emt 0:00:03]} e3 {[%emt 0:00:06]} 47. Nd4 {[%emt 0:00:12]} Ka7 {[%emt 0:00:28]} 48. h4 {[%emt 0:00:33]} Bf6 {[%emt 0:01:14]} 49. Ne2 {[%emt 0:00:32]} Kxa6 {[%emt 0:00:52]} 50. Ke4 {[%emt 0:00:14]} Kb6 {[%emt 0:00:11]} 51. Kxe3 {[%emt 0:00:01]} Kc6 {[%emt 0:00:16]} 52. Kf4 {[%emt 0:00:55]} Kd6 {[%emt 0:00:19]} 53. Kf5 {[%emt 0:00:10]} Ke7 {[%emt 0:00:19]} 54. Nf4 {[%emt 0:00:06]} Kf7 {[%emt 0:00:04]} 55. Nh3 {[%emt 0:00:08]} Bc3 {[%emt 0:00:48]} 56. Ng5+ {[%emt 0:00:02]} Kg7 {[%emt 0:00:09]} 57. Nf3 {[%emt 0:00:32]} Kf7 {[%emt 0:00:25]} 58. Ne5+ {[%emt 0:00:10]} Kg7 {[%emt 0:00:04]} 59. g4 {[%emt 0:00:41]} Bxe5 {[%emt 0:00:50]} 60. Kxe5 {[%emt 0:00:03]} Kf7 {[%emt 0:00:04]} 61. Kf5 {[%emt 0:02:25]} Kg7 {[%emt 0:00:01]} 62. Ke6 {[%emt 0:00:28]} Kg6 {[%emt 0:00:52]} 63. Ke7 {[%emt 0:01:48]} Kg7 {[%emt 0:00:12]} 64. Ke6 {[%emt 0:01:23]} Kg6 $1 {[%emt 0:00:02]} 65. Ke7 {[%emt 0:00:01]} Kg7 $1 {[%emt 0:00:06]} 66. h5 {[%emt 0:00:19]} Kg8 {[%emt 0:00:01]} 67. Kf6 {[%emt 0:00:14]} Kf8 {[%emt 0:00:04]} 68. h6 {[%emt 0:00:44]} (68. Ke6 $16) 68... Kg8 $11 {[%emt 0:00:01]} 69. Ke7 {[%emt 0:00:01]} Kh8 {[%emt 0:00:09]} 70. Kf8 {[%emt 0:00:02]} 1/2-1/2

[Event "2nd Cambridge Open 2024"]
[Site "Cambridge"]
[Date "2024.02.22"]
[Round "6.10"]
[White "Dishman, Stephen"]
[Black "Hanley, Craig A"]
[Result "1/2-1/2"]
[ECO "D02"]
[WhiteElo "2273"]
[BlackElo "2431"]
[Annotator "TA"]
[PlyCount "116"]
[EventDate "2024.02.18"]
[EventType "swiss"]
[EventCountry "ENG"]
[SourceTitle "playchess.com"]
[Source "ChessBase"]
[SourceQuality "1"]
[TimeControl "5400+30"]

{[%evp 28,116,56,60,69,57,61,58,123,82,108,102,115,117,140,90,156,111,151,133,147,134,237,246,258,65,61,55,41,39,53,50,53,54,50,50,70,37,48,37,45,45,75,33,52,0,0,0,18,0,60,0,0,-17,-47,-131,-132,-184,-42,-201,-233,-219,-226,-114,-68,-134,0,0,0,0,0,-14,119,134,1010,870,867,852,1115,695,605,0,1006,0,627,0,916,0,602,0,808]} 1. Nf3 {[%emt 0:00:05]} a6 {[%emt 0:03:20]} 2. d4 {[%emt 0:01:42]} d5 {[%emt 0:00:07]} 3. Bf4 {[%emt 0:01:10]} Nf6 {[%emt 0:02:32]} 4. e3 {[%emt 0:00:38]} Bf5 {[%emt 0:02:39]} 5. c4 {[%emt 0:03:09]} dxc4 {[%emt 0:00:37]} 6. Bxc4 {[%emt 0:00:32]} e6 {[%emt 0:00:08]} 7. Nc3 {[%emt 0:02:08]} Be7 {[%emt 0:05:44]} 8. O-O {[%emt 0:02:20]} Nbd7 {[%emt 0:15:19]} 9. Bb3 {[%emt 0:13:07]} Ne4 {[%emt 0:15:50]} 10. Rc1 {[%emt 0:02:34]} Bd6 {[%emt 0:00:55]} 11. Bxd6 {[%emt 0:05:47]} cxd6 {[%emt 0:01:06]} 12. Nxe4 {[%emt 0:04:24]} Bxe4 {[%emt 0:00:03]} 13. Bc2 {[%emt 0:02:46]} Bc6 {[%emt 0:01:35]} 14. e4 {[%emt 0:01:30]} d5 {[%emt 0:01:52]} 15. e5 {[%emt 0:01:50]} Rc8 {[%emt 0:07:49]} 16. Qd2 {[%emt 0:02:32]} h6 {[%emt 0:03:47]} 17. h4 {[%emt 0:04:07]} g6 {[%emt 0:00:57]} (17... Bb5 $14) 18. Qf4 {[%emt 0:02:11]} Qe7 {[%emt 0:00:49]} 19. Rfe1 {[%emt 0:02:40]} Kd8 {[%emt 0:08:07]} 20. Bd3 {[%emt 0:02:45]} Nb6 {[%emt 0:04:21]} 21. b3 {[%emt 0:02:37]} (21. Re2 $142) 21... Nd7 {[%emt 0:06:41]} ({Better is} 21... Kc7) 22. Re2 {[%emt 0:07:10]} Kc7 {[%emt 0:03:48]} 23. Rec2 {[%emt 0:01:49]} Kb6 {[%emt 0:03:21]} 24. a4 {[%emt 0:09:38]} Rcg8 {[%emt 0:01:16]} (24... a5 $16 {was worth a try.} 25. g3 Nb8) 25. Qd2 $18 {[%emt 0:06:17]} g5 {[%emt 0:00:08]} 26. hxg5 $2 {[%emt 0:02:51]} (26. Ra2 $18) 26... hxg5 $14 {[%emt 0:00:11]} 27. g3 {[%emt 0:00:57]} g4 {[%emt 0:01:26]} 28. Nh2 {[%emt 0:00:29]} Nb8 {[%emt 0:04:22]} 29. Qf4 $1 {[%emt 0:01:33]} Qg5 {[%emt 0:01:09]} 30. Qxg5 $1 {[%emt 0:00:56]} (30. Qxf7 $2 Qh6 31. f4 gxf3 32. Qxf3 Be8 $19 (32... Ka7 33. Rf1 $17)) 30... Rxg5 {[%emt 0:00:02]} 31. Be2 {[%emt 0:02:03]} Rhg8 {[%emt 0:00:51]} 32. Ra1 {[%emt 0:03:19]} Bd7 {[%emt 0:01:13]} 33. Rd1 {[%emt 0:01:09]} Nc6 {[%emt 0:00:21]} 34. Kg2 {[%emt 0:01:36]} Ka5 {[%emt 0:00:47]} 35. Rc3 {[%emt 0:02:06]} Kb4 {[%emt 0:00:19]} 36. Re3 {[%emt 0:00:50]} (36. Rcd3 $14) 36... Ne7 $11 {[%emt 0:00:07]} 37. Rc1 {[%emt 0:00:41]} Bc6 {[%emt 0:00:07]} (37... Nf5 $5 38. Rd3 $8 Bc6 $11) 38. Rec3 {[%emt 0:01:53]} (38. Rd3 {simplifies} Nf5 39. Rdd1 R5g7 40. Bxa6 bxa6 41. Rxc6 Ka5 42. Nf1) 38... R8g6 {[%emt 0:02:23]} (38... Nf5 $11 39. Rd3 R8g6) 39. Bd3 {[%emt 0:01:44]} (39. Rd3 $14) 39... f5 $11 {[%emt 0:00:07]} 40. Nf1 {[%emt 0:00:45]} Rh5 {[%emt 0:00:16]} 41. Nd2 {[%emt 0:01:00]} (41. Rc5 $15 Rgh6 (41... Kxb3 42. Rb1+ Ka2 43. Rc2+ Ka3 44. Rc3+ Ka2 45. Rb4) 42. f3) 41... Rgh6 $17 {[%emt 0:00:07]} 42. Kf1 {[%emt 0:00:33]} (42. Nf1 $17) 42... Rh2 {[%emt 0:00:41]} (42... f4 $1 $19 43. Ke2 fxg3 44. fxg3 Rh3) 43. R3c2 $2 {[%emt 0:00:34]} ({White should try} 43. Ke1 $1 $15) 43... R6h3 $19 {[%emt 0:00:51]} 44. Ke1 {[%emt 0:01:10]} f4 {[%emt 0:00:28]} 45. Nf1 {[%emt 0:00:10]} fxg3 {[%emt 0:01:21]} (45... Rg2 $1 $17 {Strongly threatening ...f3.} 46. Rd1 f3 (46... Kxb3 47. Rb1+ Ka3 48. Rc3+ Ka2 49. Rb4)) 46. fxg3 {[%emt 0:00:23] [#]} (46. Nxg3 $15 Rh8 (46... Kxb3 $2 47. Rb1+ Ka3 48. Rc3+ Ka2 49. Rbb3 $18) 47. Kf1) 46... Rh1 {[%emt 0:01:31]} ({Black should play} 46... Rxc2 $1 $17 47. Bxc2 Be8 (47... Kc3 48. Bf5+ Kxd4 49. Bxe6 $15)) 47. Kf2 $11 {[%emt 0:00:20]} Rh8 {[%emt 0:00:10]} (47... Kxb3 $2 48. Rb1+ Ka3 49. Rc3+ Ka2 (49... Kxa4 50. Bc2+ Ka5 51. Ra3+) 50. Rbb3 Bxa4 51. Rxb7 $18) 48. Kg2 {[%emt 0:00:15]} R1h5 {[%emt 0:01:24]} (48... Kxb3 $2 49. Nd2+ Ka3 50. Rxh1 $18) 49. Rf2 {[%emt 0:00:35]} Kxb3 {[%emt 0:00:20] [#]} (49... Nf5 $11 {remains equal.} 50. Bxf5 exf5 (50... Rxf5 51. Rxf5 exf5 52. Ne3 $11)) 50. Rfc2 $1 $16 {[%emt 0:01:29]} Kb4 $2 {[%emt 0:00:09][%mdl 8192]} (50... Kxa4 $16 51. Rb1 Ka5 (51... Ka3 52. Rc3+ Ka2 53. Rb4)) 51. Rb2+ {[%emt 0:00:36]} Ka3 {[%emt 0:00:59]} 52. Rb6 {[%emt 0:00:17]} Ka2 {[%emt 0:00:19]} 53. Rc2+ {[%emt 0:00:19]} Ka3 {[%emt 0:00:43]} 54. Rc1 {[%emt 0:00:14]} (54. Rcb2 $142 Bb5 (54... Bxa4 $2 {loses.} 55. Rb1 $18) 55. Rb1 (55. Bxb5 $2 Kxb2 56. Be8+ Kc3 $19)) 54... Ka2 $1 $18 {[%emt 0:00:10]} (54... Bxa4 55. Ra1#) 55. Rc2+ {[%emt 0:01:09]} Ka3 {[%emt 0:00:26]} 56. Rc1 {[%emt 0:00:28]} Ka2 $1 {[%emt 0:00:01]} (56... Bxa4 57. Ra1#) 57. Rc2+ {[%emt 0:00:35]} Ka3 {[%emt 0:00:03]} 58. Rc1 {[%emt 0:00:30]} Ka2 $1 {[%emt 0:03:15]} ({And not} 58... Bxa4 59. Ra1#) 1/2-1/2

[Event "2nd Cambridge Open 2024"]
[Site "Cambridge"]
[Date "2024.02.22"]
[Round "6.11"]
[White "Roberson, Peter T"]
[Black "Woltery, Nicolai"]
[Result "1-0"]
[ECO "B01"]
[WhiteElo "2424"]
[BlackElo "1979"]
[Annotator "RC"]
[PlyCount "167"]
[EventDate "2024.02.18"]
[EventType "swiss"]
[EventCountry "ENG"]
[SourceTitle "playchess.com"]
[Source "ChessBase"]
[SourceQuality "1"]
[TimeControl "5400+30"]

1. e4 {[%emt 0:00:04]} d5 {[%emt 0:01:04]} 2. exd5 {[%emt 0:00:37]} Qxd5 {[%emt 0:00:03]} 3. Nc3 {[%emt 0:00:39]} Qd6 {[%emt 0:00:08]} 4. d4 {[%emt 0:00:53]} Nf6 {[%emt 0:02:43]} 5. Nf3 {[%emt 0:00:22]} g6 {[%emt 0:00:25]} 6. Nb5 {[%emt 0:03:56]} Qd8 {[%emt 0:00:08]} 7. c4 {[%emt 0:00:44]} a6 {[%emt 0:01:31]} 8. Nc3 {[%emt 0:00:07]} c5 {[%emt 0:02:14]} 9. d5 {[%emt 0:07:38]} b5 {[%emt 0:02:04]} 10. cxb5 {[%emt 0:06:09]} Bg7 {[%emt 0:03:42]} 11. Be3 {[%emt 0:07:16]} Bb7 {[%emt 0:05:29]} 12. bxa6 {[%emt 0:05:05]} Nxa6 {[%emt 0:01:49]} 13. Bb5+ {[%emt 0:00:08]} Nd7 {[%emt 0:02:53]} 14. Qd2 {[%emt 0:06:22]} O-O {[%emt 0:02:19]} 15. Rd1 {[%emt 0:00:05]} Nb6 {[%emt 0:25:22]} 16. O-O {[%emt 0:09:37]} Bxc3 {[%emt 0:07:51]} 17. Qxc3 {[%emt 0:02:52]} Nxd5 {[%emt 0:00:44]} 18. Rxd5 {[%emt 0:10:07]} Bxd5 {[%emt 0:15:04]} 19. Rd1 {[%emt 0:13:03]} e6 {[%emt 0:07:26]} 20. Bh6 {[%emt 0:04:21]} f6 {[%emt 0:00:07]} 21. Bxf8 {[%emt 0:00:36]} Qxf8 {[%emt 0:00:43]} 22. a3 {[%emt 0:03:51]} Nc7 {[%emt 0:01:10]} 23. Be2 {[%emt 0:00:14]} Rb8 {[%emt 0:01:57]} 24. Rc1 {[%emt 0:01:54]} Ne8 {[%emt 0:01:13]} 25. Nd2 {[%emt 0:01:42]} Nd6 {[%emt 0:02:27]} 26. Bd3 {[%emt 0:01:24]} Qh6 {[%emt 0:03:09]} 27. Bf1 {[%emt 0:02:28]} Qf4 {[%emt 0:00:55]} 28. g3 {[%emt 0:03:05]} Qe5 {[%emt 0:01:35]} 29. Qxe5 {[%emt 0:03:24]} fxe5 {[%emt 0:00:01]} 30. Nc4 {[%emt 0:03:24]} Nxc4 {[%emt 0:00:29]} 31. Bxc4 {[%emt 0:00:01]} Bxc4 {[%emt 0:03:17]} 32. Rxc4 {[%emt 0:00:15]} Rxb2 {[%emt 0:00:02]} 33. Rxc5 {[%emt 0:00:12]} Ra2 {[%emt 0:01:07]} 34. Rxe5 {[%emt 0:00:47]} Rxa3 {[%emt 0:00:41]} 35. Rxe6 {[%emt 0:00:02]} Kf7 {[%emt 0:00:16]} 36. Rb6 {[%emt 0:00:10]} h5 {[%emt 0:00:37]} 37. Kg2 {[%emt 0:00:02]} Rc3 {[%emt 0:00:20]} 38. Kh3 {[%emt 0:01:06]} Rf3 {[%emt 0:01:15]} 39. Kg2 {[%emt 0:00:09]} Ra3 {[%emt 0:00:10]} 40. Rb4 {[%emt 0:01:23]} Kg7 {[%emt 0:00:30]} 41. Re4 {[%emt 0:00:05]} Rb3 {[%emt 0:00:40]} 42. Re3 {[%emt 0:00:02]} Rb5 {[%emt 0:00:09]} 43. Ra3 {[%emt 0:00:25]} Rf5 {[%emt 0:00:14]} 44. Ra7+ {[%emt 0:00:33]} Kf6 {[%emt 0:00:20]} 45. Rb7 {[%emt 0:00:02]} Ra5 {[%emt 0:00:13]} 46. Rb3 {[%emt 0:00:45]} Kg7 {[%emt 0:00:25]} 47. Rc3 {[%emt 0:00:39]} Rb5 {[%emt 0:00:05]} 48. Rc4 {[%emt 0:00:06]} Rf5 {[%emt 0:00:39]} 49. h3 {[%emt 0:00:29]} Rb5 {[%emt 0:00:23]} 50. Re4 {[%emt 0:00:33]} Rb3 {[%emt 0:00:14]} 51. Re3 {[%emt 0:00:09]} Rb5 {[%emt 0:00:20]} 52. Kf3 {[%emt 0:00:32]} Rf5+ {[%emt 0:00:22]} 53. Ke2 {[%emt 0:00:01]} Ra5 {[%emt 0:00:24]} 54. Kf1 {[%emt 0:01:39]} Ra1+ {[%emt 0:00:16]} 55. Kg2 {[%emt 0:00:01]} Ra5 {[%emt 0:00:05]} 56. g4 {[%emt 0:00:11]} hxg4 {[%emt 0:00:54]} 57. hxg4 {[%emt 0:00:01]} Kf6 {[%emt 0:00:48]} 58. f4 {[%emt 0:00:11]} Rb5 {[%emt 0:00:47]} 59. Kg3 {[%emt 0:00:03]} Ra5 {[%emt 0:00:28]} 60. Rb3 {[%emt 0:00:02]} Rc5 {[%emt 0:00:16]} 61. Rb6+ {[%emt 0:01:07]} Kg7 {[%emt 0:00:13]} 62. Rb7+ {[%emt 0:00:03]} Kg8 {[%emt 0:00:53]} 63. Kh4 {[%emt 0:02:16]} g5+ {[%emt 0:02:09]} 64. fxg5 {[%emt 0:00:10]} Rc6 {[%emt 0:00:54]} 65. Kg3 {[%emt 0:00:27]} Rc3+ {[%emt 0:00:29]} 66. Kf4 {[%emt 0:00:02]} Rc4+ {[%emt 0:00:28]} 67. Kf5 {[%emt 0:00:02]} Rc5+ {[%emt 0:00:11]} 68. Kg6 {[%emt 0:00:29]} Rc6+ {[%emt 0:00:02]} 69. Kh5 {[%emt 0:07:41]} Ra6 {[%emt 0:00:18]} 70. Re7 {[%emt 0:00:00]} Rb6 {[%emt 0:00:31]} 71. Kh4 {[%emt 0:00:00]} Ra6 {[%emt 0:01:13]} 72. Kg3 {[%emt 0:00:00]} Rb6 {[%emt 0:00:23]} 73. Kf4 {[%emt 0:00:00]} Ra6 {[%emt 0:00:20]} 74. Kf5 {[%emt 0:00:00]} Ra5+ {[%emt 0:00:21]} 75. Kf6 {[%emt 0:00:00]} Ra6+ {[%emt 0:00:06]} 76. Re6 {[%emt 0:00:00]} Ra8 {[%emt 0:03:43]} 77. Kg6 {[%emt 0:00:00]} Rb8 {[%emt 0:00:50]} 78. Ra6 {[%emt 0:00:00]} Rc8 {[%emt 0:00:42]} 79. Kh6 {[%emt 0:00:00]} Rb8 {[%emt 0:00:52]} 80. g6 {[%emt 0:00:00]} Rf8 {[%emt 0:00:41]} 81. Rb6 {[%emt 0:00:00]} Ra8 {[%emt 0:00:24]} 82. g7 {[%emt 0:00:00]} Re8 {[%emt 0:00:21]} 83. Rf6 {[%emt 0:00:00]} Ra8 {[%emt 0:00:14]} 84. Rf8+ {[%emt 0:00:00]} 1-0